bitfinex-derivatives/quotes_BNBF0:USTF0_20251225
["timestamp","ask_amount","ask_price","bid_price","bid_amount"]
[1766642719774,1.18490094,843.58,842.96,0.88884906]
[1766642720074,0.88996865,843.65,842.96,0.88884906]
[1766642720271,1.18490094,843.64,842.96,0.88884906]
[1766642720475,1.18490094,843.63,842.96,0.88884906]
[1766642720775,1.18490094,843.62,842.96,0.88884906]
[1766642721070,1.18490094,843.61,842.96,0.88884906]
[1766642721275,1.18490094,843.6,842.96,0.88884906]
[1766642721474,1.18490094,843.59,842.96,0.88884906]
[1766642721671,1.18490094,843.58,842.96,0.88884906]
[1766642721874,0.88996865,843.65,842.96,0.88884906]
[1766642722075,1.18490138,843.64,842.96,0.88884906]
[1766642722275,1.18490138,843.63,842.96,0.88884906]
[1766642722470,1.18490138,843.62,842.96,0.88884906]
[1766642722671,1.18490138,843.61,842.96,0.88884906]
[1766642722871,1.18490138,843.6,842.96,0.88884906]
[1766642723070,1.18490138,843.59,842.96,0.88884906]
[1766642723271,1.18490138,843.58,842.96,0.88884906]
[1766642723471,0.88996865,843.65,842.96,0.88884906]
[1766642723675,1.18490166,843.64,842.96,0.88884906]
[1766642723875,1.18490166,843.63,842.96,0.88884906]
[1766642724073,1.18490166,843.62,842.96,0.88884906]
[1766642724375,1.18490166,843.61,842.96,0.88884906]
[1766642724575,1.18490166,843.6,842.96,0.88884906]
[1766642724772,1.18490166,843.59,842.96,0.88884906]
[1766642724971,1.18490166,843.58,842.96,0.88884906]
[1766642725175,0.88996865,843.65,842.96,0.88884906]
[1766642725378,1.18490174,843.64,842.96,0.88884906]
[1766642725573,1.18490174,843.63,842.96,0.88884906]
[1766642725776,1.18490174,843.62,842.96,0.88884906]
[1766642725974,1.18490174,843.61,842.96,0.88884906]
[1766642726178,1.18490174,843.6,842.96,0.88884906]
[1766642726374,1.18490174,843.59,842.96,0.88884906]
[1766642726578,1.18490174,843.58,842.96,0.88884906]
[1766642726778,0.88996865,843.65,842.96,0.88884906]
[1766642726978,1.18490243,843.64,842.96,0.88884906]
[1766642727178,1.18490243,843.63,842.96,0.88884906]
[1766642727375,1.18490243,843.62,842.96,0.88884906]
[1766642727579,1.18490243,843.61,842.96,0.88884906]
[1766642727875,1.18490243,843.6,842.96,0.88884906]
[1766642728174,1.18490243,843.59,842.96,0.88884906]
[1766642728375,1.18490243,843.58,842.96,0.88884906]
[1766642728678,0.88996865,843.65,842.96,0.88884906]
[1766642728879,1.18490264,843.64,842.96,0.88884906]
[1766642729080,1.18490264,843.63,842.96,0.88884906]
[1766642729376,1.18490264,843.62,842.96,0.88884906]
[1766642729675,1.18490264,843.61,842.96,0.88884906]
[1766642729877,1.18490264,843.6,842.96,0.88884906]
[1766642730177,1.18490264,843.59,842.96,0.88884906]
[1766642730375,1.18490264,843.58,842.96,0.88884906]
[1766642730577,0.88996865,843.65,842.96,0.88884906]
[1766642730780,1.18490227,843.64,842.96,0.88884906]
[1766642730978,1.18490227,843.63,842.96,0.88884906]
[1766642731177,1.18490227,843.62,842.96,0.88884906]
[1766642731381,1.18490237,843.61,842.96,0.88884906]
[1766642731577,1.18490237,843.6,842.96,0.88884906]
[1766642731782,1.18490237,843.59,842.96,0.88884906]
[1766642732078,1.18490237,843.58,842.96,0.88884906]
[1766642732282,0.88996865,843.65,842.96,0.88884906]
[1766642732478,1.18490209,843.64,842.96,0.88884906]
[1766642732681,1.18490209,843.63,842.96,0.88884906]
[1766642732882,1.18490209,843.62,842.96,0.88884906]
[1766642733080,1.18490209,843.61,842.96,0.88884906]
[1766642733382,1.18490209,843.6,842.96,0.88884906]
[1766642733683,1.18490209,843.59,842.96,0.88884906]
[1766642733883,1.18490209,843.58,842.96,0.88884906]
[1766642734078,0.88996865,843.65,842.96,0.88884906]
[1766642734283,1.18490212,843.64,842.96,0.88884906]
[1766642734480,1.18490212,843.63,842.96,0.88884906]
[1766642734683,1.18490212,843.62,842.96,0.88884906]
[1766642734881,1.18490212,843.61,842.96,0.88884906]
[1766642735184,1.18490212,843.6,842.96,0.88884906]
[1766642735382,1.18490212,843.59,842.96,0.88884906]
[1766642735585,1.18490212,843.58,842.96,0.88884906]
[1766642735886,0.88996865,843.65,842.96,0.88884906]
[1766642736084,1.18490243,843.64,842.96,0.88884906]
[1766642736380,1.18490243,843.63,842.96,0.88884906]
[1766642736585,1.18490243,843.62,842.96,0.88884906]
[1766642736786,1.18490243,843.61,842.96,0.88884906]
[1766642736984,1.18490243,843.6,842.96,0.88884906]
[1766642737183,1.18490243,843.59,842.96,0.88884906]
[1766642737382,1.18490243,843.58,842.96,0.88884906]
[1766642737683,0.88996865,843.65,842.96,0.88884906]
[1766642737882,1.18490243,843.64,842.96,0.88884906]
[1766642738185,1.18490243,843.63,842.96,0.88884906]
[1766642738384,1.18490243,843.62,842.96,0.88884906]
[1766642738582,1.18490243,843.61,842.96,0.88884906]
[1766642738882,1.18490243,843.6,842.96,0.88884906]
[1766642739084,1.18490243,843.59,842.96,0.88884906]
[1766642739282,1.18490243,843.58,842.96,0.88884906]
[1766642739488,0.88996865,843.65,842.96,0.88884906]
[1766642739786,1.18490225,843.64,842.96,0.88884906]
[1766642739983,1.18490225,843.63,842.96,0.88884906]
[1766642740287,1.18490225,843.62,842.96,0.88884906]
[1766642740587,1.18490225,843.61,842.96,0.88884906]
[1766642740884,1.18490243,843.6,842.96,0.88884906]
[1766642741083,1.18490243,843.59,842.96,0.88884906]
[1766642741386,1.18490243,843.58,842.96,0.88884906]
[1766642741584,0.88996865,843.65,842.96,0.88884906]
[1766642741786,1.18490233,843.64,842.96,0.88884906]
[1766642741987,1.18490233,843.63,842.96,0.88884906]
[1766642742282,1.18490233,843.62,842.96,0.88884906]
[1766642742586,1.18490233,843.61,842.96,0.88884906]
[1766642742787,1.18490233,843.6,842.96,0.88884906]
[1766642742986,1.18490233,843.59,842.96,0.88884906]
[1766642743183,1.18490233,843.58,842.96,0.88884906]
[1766642743387,0.88996865,843.65,842.96,0.88884906]
[1766642743588,1.18481804,843.64,842.96,0.88884906]
[1766642743884,1.18481804,843.63,842.96,0.88884906]
[1766642744188,1.18481804,843.62,842.96,0.88884906]
[1766642744388,1.18481804,843.61,842.96,0.88884906]
[1766642744585,1.18481804,843.6,842.96,0.88884906]
[1766642744784,1.18481804,843.59,842.96,0.88884906]
[1766642744988,1.18481804,843.58,842.96,0.88884906]
[1766642745189,0.88996865,843.65,842.96,0.88884906]
[1766642745489,1.18481807,843.64,842.96,0.88884906]
[1766642745684,1.18481807,843.63,842.96,0.88884906]
[1766642745889,1.18481807,843.62,842.96,0.88884906]
[1766642746084,1.18481807,843.61,842.96,0.88884906]
[1766642746288,1.18481807,843.6,842.96,0.88884906]
[1766642746585,0.88996865,843.65,842.96,0.88884906]
[1766642746586,1.18481807,843.59,842.96,0.88884906]
[1766642746786,1.18481807,843.58,842.96,0.88884906]
[1766642746986,0.88996865,843.65,842.96,0.88884906]
[1766642747286,1.18481817,843.64,842.96,0.88884906]
[1766642747489,1.18481817,843.63,842.96,0.88884906]
[1766642747687,1.18481817,843.62,842.96,0.88884906]
[1766642747890,1.18481817,843.61,842.96,0.88884906]
[1766642748090,1.18481817,843.6,842.96,0.88884906]
[1766642748290,1.18481817,843.59,842.96,0.88884906]
[1766642748491,1.18481817,843.58,842.96,0.88884906]
[1766642748692,0.88996865,843.65,842.96,0.88884906]
[1766642748994,1.18481855,843.64,842.96,0.88884906]
[1766642749294,1.18481855,843.63,842.96,0.88884906]
[1766642749492,1.18481855,843.62,842.96,0.88884906]
[1766642749792,1.18481855,843.61,842.96,0.88884906]
[1766642749995,1.18481855,843.6,842.96,0.88884906]
[1766642750193,1.18481855,843.59,842.96,0.88884906]
[1766642750392,1.18481855,843.58,842.96,0.88884906]
[1766642750596,0.88996865,843.65,842.96,0.88884906]
[1766642750893,1.18481824,843.64,842.96,0.88884906]
[1766642751196,1.18481824,843.63,842.96,0.88884906]
[1766642751396,1.18481824,843.62,842.96,0.88884906]
[1766642751598,1.18481824,843.61,842.96,0.88884906]
[1766642751800,1.18481824,843.6,842.96,0.88884906]
[1766642751994,1.18481824,843.59,842.96,0.88884906]
[1766642752198,1.18481824,843.58,842.96,0.88884906]
[1766642752494,0.88996865,843.65,842.96,0.88884906]
[1766642752697,1.18481801,843.64,842.96,0.88884906]
[1766642752894,1.18481801,843.63,842.96,0.88884906]
[1766642753096,1.18481801,843.62,842.96,0.88884906]
[1766642753295,1.18481801,843.61,842.96,0.88884906]
[1766642753497,1.18481801,843.6,842.96,0.88884906]
[1766642753694,1.18481801,843.59,842.96,0.88884906]
[1766642753995,1.18481801,843.58,842.96,0.88884906]
[1766642754195,0.88996865,843.65,842.96,0.88884906]
[1766642754400,1.18481801,843.64,842.96,0.88884906]
[1766642754596,1.18481801,843.63,842.96,0.88884906]
[1766642754798,1.18481801,843.62,842.96,0.88884906]
[1766642754998,1.18481801,843.61,842.96,0.88884906]
[1766642755198,1.18481801,843.6,842.96,0.88884906]
[1766642755498,1.18481801,843.59,842.96,0.88884906]
[1766642755700,1.18481801,843.58,842.96,0.88884906]
[1766642755901,0.88996865,843.65,842.96,0.88884906]
[1766642756096,1.18481885,843.64,842.96,0.88884906]
[1766642756297,1.18481885,843.63,842.96,0.88884906]
[1766642756498,1.18481885,843.62,842.96,0.88884906]
[1766642756698,1.18481885,843.61,842.96,0.88884906]
[1766642756897,1.18481885,843.6,842.96,0.88884906]
[1766642757101,1.18481885,843.59,842.96,0.88884906]
[1766642757295,1.18481885,843.58,842.96,0.88884906]
[1766642757496,0.88996865,843.65,842.96,0.88884906]
[1766642757695,1.18481861,843.64,842.96,0.88884906]
[1766642757901,1.18481861,843.63,842.96,0.88884906]
[1766642758098,1.18481861,843.62,842.96,0.88884906]
[1766642758297,1.18481861,843.61,842.96,0.88884906]
[1766642758500,1.18481861,843.6,842.96,0.88884906]
[1766642758697,1.18481861,843.59,842.96,0.88884906]
[1766642758897,1.18481861,843.58,842.96,0.88884906]
[1766642759101,0.88996865,843.65,842.96,0.88884906]
[1766642759300,1.18481872,843.64,842.96,0.88884906]
[1766642759504,1.18481872,843.63,842.96,0.88884906]
[1766642759704,1.18481872,843.62,842.96,0.88884906]
[1766642759904,1.18481872,843.61,842.96,0.88884906]
[1766642760106,1.18481872,843.6,842.96,0.88884906]
[1766642760305,1.18481872,843.59,842.96,0.88884906]
[1766642760505,1.18481872,843.58,842.96,0.88884906]
[1766642760700,1.18481872,843.57,842.96,0.88884906]
[1766642760902,0.88996865,843.65,842.96,0.88884906]
[1766642761202,1.1848258,843.64,842.96,0.88884906]
[1766642761403,1.1848258,843.63,842.96,0.88884906]
[1766642761608,1.1848258,843.62,842.96,0.88884906]
[1766642761804,1.1848258,843.61,842.96,0.88884906]
[1766642762105,1.1848258,843.6,842.96,0.88884906]
[1766642762308,1.1848258,843.59,842.95,0.88884906]
[1766642762604,1.1848258,843.58,842.95,0.88884906]
[1766642762804,1.1848258,843.57,842.95,0.88884906]
[1766642763106,0.88996865,843.65,842.95,0.88884906]
[1766642763304,1.18474506,843.64,842.95,0.88884906]
[1766642763508,1.18474506,843.63,842.95,0.88884906]
[1766642763704,1.18474506,843.62,842.95,0.88884906]
[1766642763907,1.18474506,843.61,842.95,0.88884906]
[1766642764113,1.18474506,843.6,842.95,0.88884906]
[1766642764311,1.18474506,843.59,842.95,0.88884906]
[1766642764511,0.88996865,843.65,842.95,0.88884906]
[1766642764512,1.18474506,843.58,842.95,0.88884906]
[1766642764811,1.18474506,843.57,842.95,0.88884906]
[1766642765012,0.88996865,843.65,842.95,0.88884906]
[1766642765312,1.1847337,843.64,842.95,0.88884906]
[1766642765608,1.1847337,843.63,842.95,0.88884906]
[1766642765908,1.18472404,843.62,842.95,0.88884906]
[1766642766110,1.18472404,843.61,842.95,0.88884906]
[1766642766307,1.18472404,843.6,842.95,0.88884906]
[1766642766507,1.18472404,843.59,842.95,0.88884906]
[1766642766705,0.88996865,843.65,842.95,0.88884906]
[1766642766706,1.18472404,843.58,842.95,0.88884906]
[1766642766911,1.18472404,843.57,842.95,0.88884906]
[1766642767107,0.88996865,843.65,842.95,0.88884906]
[1766642767310,1.18470866,843.64,842.95,0.88884906]
[1766642767509,1.18470866,843.63,842.95,0.88884906]
[1766642767713,0.88996865,843.65,842.95,0.88884906]
[1766642767915,1.18470866,843.64,842.95,0.88884906]
[1766642768115,1.18470866,843.63,842.95,0.88884906]
[1766642768311,1.18470866,843.62,842.95,0.88884906]
[1766642768510,1.18470866,843.61,842.95,0.88884906]
[1766642768714,1.18470866,843.6,842.95,0.88884906]
[1766642768911,1.18470866,843.59,842.95,0.88884906]
[1766642769114,1.18470866,843.58,842.95,0.88884906]
[1766642769414,1.18470866,843.57,842.95,0.88884906]
[1766642769614,0.88996865,843.65,842.95,0.88884906]
[1766642769812,1.1846968,843.64,842.95,0.88884906]
[1766642770014,1.1846968,843.63,842.95,0.88884906]
[1766642770314,1.1846968,843.62,842.95,0.88884906]
[1766642770513,1.1846968,843.61,842.95,0.88884906]
[1766642770711,1.1846968,843.6,842.95,0.88884906]
[1766642770910,1.1846968,843.59,842.95,0.88884906]
[1766642771214,1.1846968,843.58,842.95,0.88884906]
[1766642771414,1.1846968,843.57,842.95,0.88884906]
[1766642771612,0.20632554,843.59,842.95,0.88884906]
[1766642771811,1.18468692,843.58,842.95,0.88884906]
[1766642772111,0.20632554,843.59,842.95,0.88884906]
[1766642772314,1.18385596,843.58,842.95,0.88884906]
[1766642772511,0.20632554,843.59,842.95,0.88884906]
[1766642772715,1.18385596,843.58,842.95,0.88884906]
[1766642772915,0.20632554,843.59,842.95,0.88884906]
[1766642773211,1.18385596,843.58,842.95,0.88884906]
[1766642773413,0.20632554,843.59,842.95,0.88884906]
[1766642773618,1.18385233,843.58,842.95,0.88884906]
[1766642773916,0.20632554,843.59,842.95,0.88884906]
[1766642774116,1.18385233,843.58,842.95,0.88884906]
[1766642774316,0.20632554,843.59,842.95,0.88884906]
[1766642774515,1.18384915,843.58,842.95,0.88884906]
[1766642774713,0.20632554,843.59,842.95,0.88884906]
[1766642774912,1.18384915,843.58,842.95,0.88884906]
[1766642775112,0.20632554,843.59,842.95,0.88884906]
[1766642775312,1.1838464,843.58,842.95,0.88884906]
[1766642775517,0.20632554,843.59,842.95,0.88884906]
[1766642775715,1.1838464,843.58,842.95,0.88884906]
[1766642775912,0.20632554,843.59,842.95,0.88884906]
[1766642776214,1.1838464,843.58,842.95,0.88884906]
[1766642776413,0.20632554,843.59,842.95,0.88884906]
[1766642776720,1.18384407,843.58,842.95,0.88884906]
[1766642776912,0.20632554,843.59,842.95,0.88884906]
[1766642777112,1.18384407,843.58,842.95,0.88884906]
[1766642777416,0.20632554,843.59,842.95,0.88884906]
[1766642777616,1.18384213,843.58,842.95,0.88884906]
[1766642777816,0.20632554,843.59,842.95,0.88884906]
[1766642778016,1.18384213,843.58,842.95,0.88884906]
[1766642778213,0.20632554,843.59,842.95,0.88884906]
[1766642778411,1.18384018,843.58,842.95,0.88884906]
[1766642778615,0.20632554,843.59,842.95,0.88884906]
[1766642778812,1.18384018,843.58,842.95,0.88884906]
[1766642779015,0.20632554,843.59,842.95,0.88884906]
[1766642779215,1.18384026,843.58,842.95,0.88884906]
[1766642779413,0.20632554,843.59,842.95,0.88884906]
[1766642779618,1.18383927,843.58,842.95,0.88884906]
[1766642779818,0.20632554,843.59,842.95,0.88884906]
[1766642780018,1.18383927,843.58,842.95,0.88884906]
[1766642780218,0.20632554,843.59,842.95,0.88884906]
[1766642780418,1.18383847,843.58,842.95,0.88884906]
[1766642780619,0.20632554,843.59,842.95,0.88884906]
[1766642780820,1.18383847,843.58,842.95,0.88884906]
[1766642781115,0.20632554,843.59,842.95,0.88884906]
[1766642781318,1.18383801,843.58,842.95,0.88884906]
[1766642781517,0.20632554,843.59,842.95,0.88884906]
[1766642781716,1.18383801,843.58,842.95,0.88884906]
[1766642782021,0.20632554,843.59,842.95,0.88884906]
[1766642782320,1.18383797,843.58,842.95,0.88884906]
[1766642782520,0.20632554,843.59,842.95,0.88884906]
[1766642782720,1.18383788,843.58,842.95,0.88884906]
[1766642782920,0.20632554,843.59,842.95,0.88884906]
[1766642783121,1.18383788,843.58,842.95,0.88884906]
[1766642783321,0.20632554,843.59,842.95,0.88884906]
[1766642783518,1.18383807,843.58,842.95,0.88884906]
[1766642783716,0.20632554,843.59,842.95,0.88884906]
[1766642783920,1.18383815,843.58,842.95,0.88884906]
[1766642784121,0.20632554,843.59,842.95,0.88884906]
[1766642784320,1.18383866,843.58,842.95,0.88884906]
[1766642784522,0.20632554,843.59,842.95,0.88884906]
[1766642784724,1.18383866,843.58,842.95,0.88884906]
[1766642784924,0.20632554,843.59,842.95,0.88884906]
[1766642785224,1.18383866,843.58,842.95,0.88884906]
[1766642785423,0.20632554,843.59,842.95,0.88884906]
[1766642785624,1.1838395,843.58,842.95,0.88884906]
[1766642785921,0.20632554,843.59,842.95,0.88884906]
[1766642786221,1.18383964,843.58,842.95,0.88884906]
[1766642786521,0.20632554,843.59,842.95,0.88884906]
[1766642786721,1.1838409,843.58,842.95,0.88884906]
[1766642786920,0.20632554,843.59,842.95,0.88884906]
[1766642787122,1.1838409,843.58,842.95,0.88884906]
[1766642787322,0.20632554,843.59,842.96,0.88884906]
[1766642787625,1.18384242,843.58,842.94,0.88884906]
[1766642787822,1.18384242,843.57,842.94,0.88884906]
[1766642788027,1.18384242,843.56,842.94,0.88884906]
[1766642788225,0.20632554,843.59,842.94,0.88884906]
[1766642788422,1.1838199,843.58,842.94,0.88884906]
[1766642788621,1.1838199,843.57,842.94,0.88884906]
[1766642788924,1.1838199,843.56,842.94,0.88884906]
[1766642789124,0.20632554,843.59,842.94,0.88884906]
[1766642789325,2.07375987,843.58,842.86,0.88884906]
[1766642789526,0.88996865,843.47,842.75,0.88884906]
[1766642789822,0.88996865,843.45,842.73,0.88884906]
[1766642790025,1.18379122,843.44,842.73,0.88884906]
[1766642790427,1.18379122,843.44,842.7,0.88884906]
[1766642790628,1.18379122,843.43,842.7,0.88884906]
[1766642790927,1.18379122,843.42,842.7,0.88884906]
[1766642791126,1.18379122,843.41,842.7,0.88884906]
[1766642791328,0.88996865,843.49,842.69,0.88884906]
[1766642791626,1.18225676,843.48,842.69,0.88884906]
[1766642791823,1.18225676,843.47,842.69,0.88884906]
[1766642792027,1.18225676,843.46,842.69,0.88884906]
[1766642792226,1.18225676,843.45,842.69,0.88884906]
[1766642792426,1.18225676,843.44,842.68,0.88884906]
[1766642792624,1.18225676,843.43,842.68,0.88884906]
[1766642792828,0.88996865,843.51,842.68,0.88884906]
[1766642793029,1.181855,843.5,842.68,0.88884906]
[1766642793228,1.181855,843.49,842.68,0.88884906]
[1766642793524,1.181855,843.48,842.67,0.88884906]
[1766642793729,1.181855,843.47,842.67,0.88884906]
[1766642794031,1.181855,843.46,842.67,0.88884906]
[1766642794330,1.181855,843.45,842.66,0.88884906]
[1766642794530,1.181855,843.44,842.66,0.88884906]
[1766642794831,0.88996865,843.52,842.66,0.88884906]
[1766642795127,1.1812566,843.51,842.66,0.88884906]
[1766642795331,1.1812566,843.5,842.66,0.88884906]
[1766642795635,1.1812566,843.49,842.65,0.88884906]
[1766642795825,1.1812566,843.48,842.65,0.88884906]
[1766642796029,1.1812566,843.47,842.65,0.88884906]
[1766642796230,1.1812566,843.46,842.65,0.88884906]
[1766642796527,0.88996865,843.53,842.65,0.88884906]
[1766642796832,1.18081585,843.52,842.65,0.88884906]
[1766642797025,1.18081585,843.51,842.65,0.88884906]
[1766642797229,1.18081585,843.5,842.65,0.88884906]
[1766642797426,1.18081585,843.49,842.64,0.88884906]
[1766642797630,1.18081585,843.48,842.64,0.88884906]
[1766642797829,1.18081585,843.47,842.64,0.88884906]
[1766642798032,1.18081585,843.46,842.64,0.88884906]
[1766642798333,0.88996865,843.54,842.64,0.88884906]
[1766642798535,1.18047595,843.53,842.64,0.88884906]
[1766642798733,1.18047595,843.52,842.64,0.88884906]
[1766642798930,1.18047595,843.51,842.64,0.88884906]
[1766642799134,1.18047595,843.5,842.64,0.88884906]
[1766642799332,1.18047595,843.49,842.64,0.88884906]
[1766642799632,1.18047595,843.48,842.63,0.88884906]
[1766642799832,1.18047595,843.47,842.63,0.88884906]
[1766642800034,0.88996865,843.55,842.63,0.88884906]
[1766642800235,1.18023816,843.54,842.63,0.88884906]
[1766642800435,1.18023816,843.53,842.63,0.88884906]
[1766642800734,1.18023816,843.52,842.63,0.88884906]
[1766642800937,1.18023816,843.51,842.63,0.88884906]
[1766642801132,0.88996865,843.55,842.63,0.88884906]
[1766642801133,1.18023816,843.5,842.63,0.88884906]
[1766642801336,1.18023816,843.49,842.63,0.88884906]
[1766642801535,1.18023816,843.48,842.63,0.88884906]
[1766642801735,0.88996865,843.56,842.63,0.88884906]
[1766642801938,1.18010256,843.55,842.63,0.88884906]
[1766642802240,1.18010256,843.54,842.63,0.88884906]
[1766642802535,1.18010256,843.53,842.62,0.88884906]
[1766642802738,1.18010256,843.52,842.62,0.88884906]
[1766642802938,1.18010256,843.51,842.62,0.88884906]
[1766642803238,1.18010256,843.5,842.62,0.88884906]
[1766642803435,1.18010256,843.49,842.62,0.88884906]
[1766642803639,1.18010256,843.48,842.62,0.88884906]
[1766642803837,0.88996865,843.45,842.52,0.88884906]
[1766642804037,1.17982299,843.44,842.52,0.88884906]
[1766642804440,2.06979164,843.44,842.48,0.88884906]
[1766642804642,1.17982299,843.43,842.48,0.88884906]
[1766642804841,2.06979164,843.42,842.47,0.88884906]
[1766642805140,1.17982299,843.41,842.47,0.88884906]
[1766642805336,1.17982299,843.4,842.47,0.88884906]
[1766642805641,2.06979164,843.39,842.42,0.88884906]
[1766642805940,2.06979164,843.38,842.41,0.88884906]
[1766642806141,1.17982299,843.37,842.41,0.88884906]
[1766642806339,0.88996865,843.27,842.25,0.88884906]
[1766642806538,1.17982299,843.26,842.25,0.88884906]
[1766642806738,1.17982299,843.25,842.25,0.88884906]
[1766642806941,1.17982299,843.24,842.25,0.88884906]
[1766642807142,1.17982299,843.23,842.25,0.88884906]
[1766642807341,1.17982299,843.22,842.23,0.88884906]
[1766642807641,0.88996865,843.31,842.25,0.88884906]
[1766642807841,1.17786959,843.3,842.25,0.88884906]
[1766642808039,1.17786959,843.29,842.25,0.88884906]
[1766642808242,1.17786959,843.28,842.25,0.88884906]
[1766642808542,0.20632554,843.59,842.24,0.88884906]
[1766642808543,1.17786959,843.27,842.24,0.88884906]
[1766642808743,1.17786959,843.26,842.24,0.88884906]
[1766642809042,1.17786959,843.25,842.24,0.88884906]
[1766642809242,0.88996865,843.32,842.24,0.88884906]
[1766642809439,1.17687551,843.31,842.22,0.88884906]
[1766642809639,1.17687551,843.3,842.22,0.88884906]
[1766642809841,1.17687551,843.29,842.22,0.88884906]
[1766642810038,1.17687551,843.28,842.22,0.88884906]
[1766642810238,1.17687551,843.27,842.22,0.88884906]
[1766642810442,1.17687551,843.26,842.21,0.88884906]
[1766642810643,0.88996865,843.34,842.21,0.88884906]
[1766642810845,1.17648006,843.33,842.21,0.88884906]
[1766642811043,1.17648006,843.32,842.21,0.88884906]
[1766642811243,1.17648006,843.31,842.21,0.88884906]
[1766642811539,1.17648006,843.3,842.2,0.88884906]
[1766642811744,1.17648006,843.29,842.2,0.88884906]
[1766642811944,1.17648006,843.28,842.2,0.88884906]
[1766642812143,0.88996865,843.35,842.2,0.88884906]
[1766642812439,1.18678527,843.51,841.36,0.0091776]
[1766642812440,1.17584271,843.34,842.19,0.88884906]
[1766642812640,1.17584271,843.33,842.19,0.88884906]
[1766642812840,1.17584271,843.32,842.19,0.88884906]
[1766642813041,1.17584271,843.31,842.19,0.88884906]
[1766642813244,1.17584271,843.3,842.19,0.88884906]
[1766642813441,1.17584271,843.29,842.19,0.88884906]
[1766642813645,0.88996865,843.37,842.19,0.88884906]
[1766642813839,1.17558802,843.36,842.19,0.88884906]
[1766642814138,1.17558802,843.35,842.19,0.88884906]
[1766642814339,1.17558802,843.34,842.19,0.88884906]
[1766642814544,1.17558802,843.33,842.18,0.88884906]
[1766642814840,1.17558802,843.32,842.18,0.88884906]
[1766642815044,1.17558802,843.31,842.18,0.88884906]
[1766642815245,1.17558802,843.3,842.18,0.88884906]
[1766642815446,0.88996865,843.38,842.18,0.88884906]
[1766642815745,1.17518938,843.37,842.18,0.88884906]
[1766642816043,1.17518938,843.36,842.18,0.88884906]
[1766642816347,1.17518938,843.35,842.18,0.88884906]
[1766642816645,1.17518938,843.34,842.17,0.88884906]
[1766642816845,1.17518938,843.33,842.17,0.88884906]
[1766642817046,1.17518938,843.32,842.17,0.88884906]
[1766642817244,1.17518938,843.31,842.17,0.88884906]
[1766642817444,0.88996865,843.39,842.17,0.88884906]
[1766642817642,1.17492133,843.38,842.17,0.88884906]
[1766642817944,1.17492133,843.37,842.17,0.88884906]
[1766642818145,1.17492133,843.36,842.17,0.88884906]
[1766642818346,1.17492133,843.35,842.17,0.88884906]
[1766642818546,1.17492133,843.34,842.17,0.88884906]
[1766642818743,1.17492133,843.33,842.17,0.88884906]
[1766642818944,1.17492133,843.32,842.21,0.88884906]
[1766642819144,1.09629419,843.59,842.37,0.88884906]
[1766642819350,1.17531441,843.58,842.37,0.88884906]
[1766642819647,1.17531441,843.57,842.37,0.88884906]
[1766642821551,1.17531441,843.57,842.22,1.18628807]
[1766642821552,1.17531441,843.57,842.38,0.88884906]
[1766642821756,0.88996865,843.58,842.38,0.88884906]
[1766642822056,0.20632554,843.59,842.45,0.88884906]
[1766642822253,1.17549169,843.58,842.45,0.88884906]
[1766642822453,1.17549169,843.57,842.46,0.88884906]
[1766642822752,0.20632554,843.59,842.46,0.88884906]
[1766642822958,1.17559246,843.58,842.46,0.88884906]
[1766642823158,0.20632554,843.59,842.46,0.88884906]
[1766642823453,0.20632554,843.59,842.51,0.88884906]
[1766642825356,0.20632554,843.59,842.52,0.88884906]
[1766642826057,0.20632554,843.59,842.53,0.88884906]
[1766642826352,0.20632554,843.59,842.54,0.88884906]
[1766642828357,0.20632554,843.59,842.55,0.88884906]
[1766642828656,0.20632554,843.59,842.57,0.88884906]
[1766642829454,0.20632554,843.59,842.58,0.88884906]
[1766642829659,0.20632554,843.59,842.59,0.88884906]
[1766642829855,0.20632554,843.59,842.66,0.88884906]
[1766642830359,0.20632554,843.59,842.67,0.88884906]
[1766642833463,0.20632554,843.59,842.68,0.88884906]
[1766642835366,0.20632554,843.59,842.67,0.88884906]
[1766642838168,0.20632554,843.59,842.68,0.88884906]
[1766642839468,0.20632554,843.59,842.67,0.88884906]
[1766642842371,0.20632554,843.59,842.66,0.88884906]
[1766642846475,0.20632554,843.59,842.65,0.88884906]
[1766642847376,0.20632554,843.59,842.66,0.88884906]
[1766642850483,0.20632554,843.59,842.65,0.88884906]
[1766642851279,0.20632554,843.59,842.66,0.88884906]
[1766642853282,0.20632554,843.59,842.67,0.88884906]
[1766642854487,0.20632554,843.59,842.68,0.88884906]
[1766642856394,0.20632554,843.59,842.69,0.88884906]
[1766642857390,0.20632554,843.59,842.7,0.88884906]
[1766642858390,0.20632554,843.59,842.72,0.88884906]
[1766642859290,0.20632554,843.59,842.73,0.88884906]
[1766642860588,0.20632554,843.59,842.74,0.88884906]
[1766642861290,1.17944563,843.58,842.68,0.88884906]
[1766642861491,0.20632554,843.59,842.7,0.88884906]
[1766642861698,1.1795012,843.58,842.7,0.88884906]
[1766642861894,0.20632554,843.59,842.7,0.88884906]
[1766642862096,1.1795012,843.58,842.7,0.88884906]
[1766642862295,1.1795012,843.57,842.72,0.88884906]
[1766642862493,1.1795012,843.56,842.72,0.88884906]
[1766642862691,1.1795012,843.55,842.72,0.88884906]
[1766642862897,0.20632554,843.59,842.72,0.88884906]
[1766642863097,1.18053048,843.58,842.72,0.88884906]